bitfinex/quotes_ETHUSD_20220123
["timestamp","ask_amount","ask_price","bid_price","bid_amount"]
[1642974808350,1.2277741,2426.4,2426.0,0.00051356]
[1642974809354,2.5277741,2426.4,2426.0,0.00051356]
[1642974810254,1.27430544,2426.2,2426.0,0.00051356]
[1642974810654,0.20567,2426.1,2426.0,0.00051356]
[1642974812104,1.27430544,2426.2,2426.0,0.00051356]
[1642974813504,3.05567,2426.1,2426.0,0.00051356]
[1642974813904,0.20567,2426.1,2426.0,0.00051356]
[1642974815949,5.95567,2426.1,2426.0,0.00051356]
[1642974816951,0.20567,2426.1,2426.0,0.00051356]
[1642974817550,4.42667544,2426.2,2426.0,0.00051356]
[1642974817750,2.80567,2426.1,2426.0,0.00051356]
[1642974818350,4.32100544,2426.2,2426.0,0.00051356]
[1642974818996,1.27430544,2426.2,2426.0,0.00051356]
[1642974820798,1.27430544,2426.2,2426.0,0.00158027]
[1642974822450,0.10567,2426.3,2426.0,0.00158027]
[1642974822849,1.0221041,2426.4,2426.0,0.00158027]
[1642974823450,1.02097737,2426.4,2426.0,0.00158027]
[1642974824250,1.01984688,2426.4,2426.0,0.00158027]
[1642974829709,9.7921,2426.9,2426.0,0.00158027]
[1642974829710,2.09,2427.0,2426.1,0.20621]
[1642974829952,2.09,2427.0,2426.2,2.96301]
[1642974830151,2.09,2427.0,2426.3,1.0]
[1642974830345,2.09,2427.0,2426.3,1.00106673]
[1642974830548,2.09,2427.0,2426.3,0.00106673]
[1642974830950,0.94403132,2426.8,2426.5,1.14611998]
[1642974831150,0.94403132,2426.8,2426.5,1.14718671]
[1642974831349,0.94403132,2426.8,2426.5,0.30106673]
[1642974831750,0.94403132,2426.8,2426.5,0.00106673]
[1642974833996,2.09,2427.0,2426.5,0.00106673]
[1642974834797,2.09,2427.0,2426.6,2.33838057]
[1642974835003,2.09,2427.0,2426.6,2.3394473]
[1642974835798,1.00263981,2426.7,2426.6,2.3394473]
[1642974835998,1.00263981,2426.7,2426.6,0.30106673]
[1642974836199,2.09,2427.0,2426.6,0.00106673]
[1642974836401,2.09,2427.0,2426.6,0.30106673]
[1642974836598,2.09,2427.0,2426.6,0.20106673]
[1642974836998,2.09,2427.0,2426.6,0.00106673]
[1642974837442,0.88815969,2426.9,2426.6,1.51967288]
[1642974837648,0.88815969,2426.9,2426.6,0.00106673]
[1642974838544,0.88815969,2426.9,2426.6,1.54032014]
[1642974838746,2.09,2427.0,2426.6,1.54032014]
[1642974838952,2.09,2427.0,2426.7,2.76239106]
[1642974839156,7.43,2429.0,2426.9,7.65]
[1642974839157,3.6578,2428.1,2426.9,7.65]
[1642974839354,0.10567,2428.3,2427.0,3.0079836]
[1642974839552,5.35052976,2428.3,2427.0,1.68636675]
[1642974839752,5.35052976,2428.3,2427.0,1.98636675]
[1642974839753,1.0104517,2427.2,2427.0,1.98636675]
[1642974840156,1.0104517,2427.2,2427.0,1.68636675]
[1642974840355,1.0104517,2427.2,2427.0,0.59306673]
[1642974840752,1.0104517,2427.2,2427.0,0.00106673]
[1642974841403,6.55567,2427.1,2427.0,0.00106673]
[1642974841600,7.75577,2427.1,2427.0,0.00106673]
[1642974842601,32.94577,2427.1,2427.0,6.673e-05]
[1642974842806,0.00073327,2426.9,2426.0,0.00051356]
[1642974843003,0.00073327,2426.9,2426.0,0.00158029]
[1642974843400,0.30073327,2426.9,2426.0,0.00158029]
[1642974843601,0.56703327,2426.9,2426.0,0.00158029]
[1642974843803,1.23456145,2426.8,2426.0,0.00158029]
[1642974844007,1.53456145,2426.8,2426.0,0.00158029]
[1642974844205,1.16264047,2426.3,2426.0,0.00158029]
[1642974844854,5.90567,2426.1,2426.0,0.00158029]
[1642974845453,6.81800481,2426.1,2426.0,0.00158029]
[1642974845646,8.11800481,2426.1,2426.0,0.00158029]
[1642974845846,9.47910481,2426.1,2426.0,0.00158029]
[1642974848257,3.67910481,2426.1,2426.0,0.00158029]
[1642974848454,2.31800481,2426.1,2426.0,0.00158029]
[1642974850502,5.11800481,2426.1,2426.0,0.00158029]
[1642974852350,2.31800481,2426.1,2426.0,0.00158029]
[1642974852540,5.56800481,2426.1,2426.0,0.00158029]
[1642974853245,2.31800481,2426.1,2426.0,0.00158029]
[1642974854448,7.61800481,2426.1,2426.0,0.00078029]
[1642974854846,2.31800481,2426.1,2426.0,0.00078029]
[1642974855351,5.31800481,2426.1,2426.0,0.00078029]
[1642974855647,2.31800481,2426.1,2426.0,0.00078029]
[1642974857295,5.56800481,2426.1,2426.0,0.00078029]
[1642974858195,5.86800481,2426.1,2426.0,0.00078029]
[1642974860752,4.26800481,2426.1,2426.0,0.00078029]
[1642974861153,28.45800481,2426.1,2426.0,0.00078029]
[1642974861551,1.48100694,2425.1,2424.6,3.9073]
[1642974861752,0.10567,2425.5,2424.6,3.9073]
[1642974862153,1.10567,2425.7,2424.6,3.9073]
[1642974862353,0.10567,2425.4,2424.6,3.9073]
[1642974862751,0.85410277,2424.9,2424.6,3.9073]
[1642974863054,0.85410277,2424.9,2424.5,0.02]
[1642974863455,1.09280054,2425.3,2424.5,0.02]
[1642974863898,0.10567,2425.4,2424.5,0.02]
[1642974864300,1.971e-05,2425.8,2424.5,2.17547785]
[1642974864501,1.971e-05,2425.8,2424.6,7.43]
[1642974864701,1.16613937,2425.0,2424.7,2.28128078]
[1642974864905,1.971e-05,2425.8,2424.7,2.28128078]
[1642974865102,1.971e-05,2425.8,2425.1,1.34583919]
[1642974865303,1.971e-05,2425.8,2425.1,0.6]
[1642974865504,1.971e-05,2425.8,2425.0,0.592]
[1642974865704,1.971e-05,2425.8,2425.0,0.892]
[1642974866106,1.971e-05,2425.8,2425.0,1.192]
[1642974866903,0.97386988,2425.4,2425.0,1.192]
[1642974867103,0.97386988,2425.4,2425.1,1.527548]
[1642974867747,1.971e-05,2425.8,2425.1,2.127548]
[1642974867949,1.971e-05,2425.8,2425.1,0.3]
[1642974868147,1.971e-05,2425.8,2425.0,0.892]
[1642974868349,1.971e-05,2425.8,2425.1,2.12901744]
[1642974868548,1.971e-05,2425.8,2425.0,0.892]
[1642974869150,1.05170965,2425.4,2425.2,1.13011084]
[1642974869650,1.971e-05,2425.8,2425.0,0.892]
[1642974870051,1.971e-05,2425.8,2425.0,1.09821]
[1642974870255,1.971e-05,2425.8,2425.0,0.892]
[1642974871094,0.82401932,2425.5,2425.3,1.45069527]
[1642974871594,0.82401932,2425.5,2425.0,0.892]
[1642974872594,0.82401932,2425.5,2425.0,1.99998104]
[1642974873196,1.971e-05,2425.8,2425.3,1.16390095]
[1642974873397,1.971e-05,2425.8,2425.0,0.892]
[1642974873807,0.10568971,2425.8,2424.8,1.1589]
[1642974874006,1.971e-05,2425.8,2424.8,1.1589]
[1642974874405,1.971e-05,2425.8,2424.3,4.8703]
[1642974874406,0.95217799,2425.7,2424.3,4.8703]
[1642974874604,0.33651478,2424.7,2424.1,10.5838]
[1642974874861,0.33651478,2424.7,2424.1,7.45]
[1642974875049,0.33651478,2424.7,2424.1,0.02]
[1642974876655,2.46035564,2425.3,2424.5,1.18157218]
[1642974877050,2.46035564,2425.3,2424.5,0.02]
[1642974877656,0.89297173,2424.7,2424.5,0.02]
[1642974878253,0.89297173,2424.7,2424.5,1.1162637]
[1642974878590,0.84297173,2424.7,2424.5,0.02]
[1642974878799,1.0,2425.1,2424.5,0.02]
[1642974879195,3.8494,2425.2,2424.5,0.02]
[1642974879598,1.46035564,2425.3,2424.5,0.02]
[1642974879994,0.87327356,2424.7,2424.5,0.02]
[1642974880895,2.46035564,2425.3,2424.5,0.02]
[1642974884751,0.92547037,2424.9,2424.5,0.02]
[1642974885452,2.46035564,2425.3,2424.5,0.02]
[1642974885853,1.10567,2425.3,2424.5,0.02]
[1642974886096,3.1557,2425.5,2424.5,0.02]
[1642974886315,3.1557,2425.5,2424.6,1.17835185]
[1642974886496,3.1557,2425.5,2425.0,1.09454823]
[1642974886695,1.01752243,2425.6,2425.0,0.3]
[1642974887096,1.01752243,2425.6,2424.7,0.3]
[1642974887498,1.971e-05,2425.8,2424.7,0.3]
[1642974887699,1.00001971,2425.8,2424.7,0.3]
[1642974888098,1.30001971,2425.8,2424.7,0.3]
[1642974888300,2.1701923,2425.7,2424.7,0.3]
[1642974888500,0.88310726,2425.4,2424.8,0.89474134]
[1642974889002,1.10567,2425.6,2424.8,0.89474134]
[1642974889199,1.40567,2425.6,2424.8,0.89474134]
[1642974889405,0.40567,2425.6,2424.8,0.89474134]
[1642974889601,1.10567,2425.6,2424.8,0.89474134]
[1642974889847,0.10567,2425.6,2424.8,0.89474134]
[1642974890056,1.971e-05,2425.8,2424.9,0.20621]
[1642974890265,1.971e-05,2425.8,2425.0,0.592]
[1642974890457,1.971e-05,2425.8,2425.1,0.20621]
[1642974891660,1.971e-05,2425.8,2425.0,0.892]
[1642974891857,1.971e-05,2425.8,2425.0,0.3]
[1642974892062,1.971e-05,2425.8,2424.9,4.4139]
[1642974893593,1.971e-05,2425.8,2425.1,1.04224938]
[1642974893801,1.971e-05,2425.8,2425.1,1.64224938]
[1642974893999,1.971e-05,2425.8,2425.1,0.3]
[1642974894200,1.971e-05,2425.8,2425.0,2.84351986]
[1642974895100,1.971e-05,2425.8,2425.0,3.04972986]
[1642974895504,1.971e-05,2425.8,2425.0,1.50621]
[1642974896502,1.971e-05,2425.8,2425.1,0.85390084]
[1642974896904,1.971e-05,2425.8,2425.1,2.92240729]
[1642974897206,1.971e-05,2425.8,2425.2,1.0]
[1642974897646,1.971e-05,2425.8,2425.1,2.06850645]
[1642974900050,1.971e-05,2425.8,2425.1,0.3]
[1642974900250,1.971e-05,2425.8,2425.0,0.80621]
[1642974900452,1.971e-05,2425.8,2424.9,0.3]
[1642974900651,1.971e-05,2425.8,2424.8,3.6395]
[1642974901102,1.1992594,2425.8,2424.8,3.6395]
[1642974901299,2.36979166,2425.7,2425.1,0.9443158]
[1642974901599,3.36979166,2425.7,2425.1,0.9443158]
[1642974902404,2.36979166,2425.7,2425.1,0.9443158]
[1642974902599,0.10568971,2425.8,2425.5,0.97084436]
[1642974902800,2.32287643,2425.8,2424.8,3.6395]
[1642974902999,2.32287643,2425.8,2424.8,3.9395]
[1642974903399,0.10568971,2425.8,2424.8,3.9395]
[1642974903806,2.31568001,2425.8,2424.8,3.9395]
[1642974904003,2.21001001,2425.8,2424.8,4.2395]
[1642974904203,2.21001001,2425.8,2425.3,0.99042551]
[1642974904204,1.971e-05,2425.8,2425.3,0.99042551]
[1642974906447,1.971e-05,2425.8,2424.8,3.6395]
[1642974907150,2.21974627,2425.8,2424.8,3.6395]
[1642974907555,1.971e-05,2425.8,2425.3,0.87227239]
[1642974907752,1.971e-05,2425.8,2424.8,4.44571]
[1642974908051,1.971e-05,2425.8,2424.9,1.592]
[1642974909306,1.971e-05,2425.8,2425.2,0.88100142]
[1642974909506,1.971e-05,2425.8,2424.9,1.592]
[1642974910609,1.971e-05,2425.8,2425.0,0.93306725]
[1642974910810,1.971e-05,2425.8,2425.0,1.52506725]
[1642974911009,1.971e-05,2425.8,2425.0,1.82506725]
[1642974911412,1.971e-05,2425.8,2425.0,0.892]
[1642974912561,1.971e-05,2425.8,2425.3,0.85566384]
[1642974912765,1.971e-05,2425.8,2425.3,0.20621]
[1642974912963,1.971e-05,2425.8,2425.3,1.39821]
[1642974913160,1.971e-05,2425.8,2425.3,0.79821]
[1642974913360,1.971e-05,2425.8,2425.3,1.39821]
[1642974913964,1.971e-05,2425.8,2425.3,2.4295]
[1642974914564,7.73069477,2426.7,2425.5,7.65]
[1642974914565,0.01249477,2426.7,2425.5,7.65]
[1642974914870,0.00073327,2426.9,2425.7,1.031]
[1642974915064,0.00073327,2426.9,2425.8,34.3528]
[1642974915270,0.00073327,2426.9,2426.6,1.01021788]
[1642974915463,0.00073327,2426.9,2426.8,1.1672166]
[1642974915662,0.00073327,2426.9,2426.8,4.8172166]
[1642974916300,0.00073327,2426.9,2426.8,6.0234266]
[1642974917202,1.1462,2428.0,2426.8,6.0234266]
[1642974917203,8.72745445,2428.2,2426.9,7.65]
[1642974917401,0.0129831,2428.5,2427.0,3.62774898]
[1642974917599,8.74043755,2428.5,2427.0,5.22774898]
[1642974917809,8.74043755,2428.5,2427.0,1.192]
[1642974918001,8.72745445,2428.3,2427.0,1.192]
[1642974918203,8.72745445,2428.3,2427.0,2.192]
[1642974918204,0.84225845,2427.5,2427.0,2.192]
[1642974918399,1.54649459,2428.1,2427.0,1.192]
[1642974918604,0.04608166,2428.5,2427.0,1.192]
[1642974918605,8.74316891,2428.5,2427.1,2.0]
[1642974918808,0.01571446,2428.5,2427.2,0.592]
[1642974919004,0.01571446,2428.5,2427.3,0.37091]
[1642974919203,0.0129831,2428.5,2427.4,0.592]
[1642974919603,0.0129831,2428.5,2428.0,1.53900775]
[1642974919604,1.06721447,2428.3,2428.0,1.53900775]
[1642974919861,1.06721447,2428.3,2428.0,1.27726062]
[1642974920049,1.06721447,2428.3,2428.0,1.57726062]
[1642974920248,1.06721447,2428.3,2428.0,0.97726062]
[1642974920453,1.06721447,2428.3,2427.8,0.3]
[1642974920652,0.0129831,2428.5,2427.7,0.892]
[1642974920854,8.72745445,2429.2,2427.8,0.20621]
[1642974921052,5.7810273,2429.3,2427.9,0.592]
[1642974921248,5.7810273,2429.3,2427.9,0.892]
[1642974921249,0.0127273,2429.3,2427.9,0.892]
[1642974921649,0.01187317,2429.3,2427.9,0.892]
[1642974921850,0.98129823,2428.6,2428.4,1.33017925]
[1642974922056,0.98129823,2428.6,2428.4,1.93017925]
[1642974922260,0.98129823,2428.6,2428.0,0.20621]
[1642974922460,0.98129823,2428.6,2427.7,1.297]
[1642974922657,0.98129823,2428.6,2427.7,0.1647]
[1642974923257,0.15172454,2428.2,2427.8,1.4039443]
[1642974923600,0.15172454,2428.2,2427.3,0.592]
[1642974924409,0.15172454,2428.2,2427.5,0.99190768]
[1642974924607,0.15172454,2428.2,2427.8,1.2579059]
[1642974925005,0.15172454,2428.2,2427.3,0.892]
[1642974926208,1.25865219,2428.7,2427.7,1.23682089]
[1642974926410,1.25865219,2428.7,2427.7,1.83682089]
[1642974926411,0.01255219,2428.7,2427.7,1.83682089]
[1642974926611,3.13253136,2429.3,2427.8,2.1559792]
[1642974926806,3.13253136,2429.3,2427.9,0.592]
[1642974927008,3.1298,2429.3,2427.9,0.892]
[1642974927208,3.1298,2429.3,2427.9,1.892]
[1642974927475,1.13302277,2428.8,2428.5,1.13667461]
[1642974927672,1.13302277,2428.8,2428.5,0.72978903]
[1642974927874,8.97217504,2429.4,2428.5,0.72978903]
[1642974928073,1.15250504,2429.4,2428.5,1.02978903]
[1642974928278,1.15250504,2429.4,2428.5,1.32978903]
[1642974928677,1.15250504,2429.4,2428.5,1.02978903]
[1642974928875,0.84255689,2428.9,2428.5,1.32978903]
[1642974929275,1.47384329,2429.3,2428.5,1.32978903]
[1642974930476,1.02540605,2428.8,2428.5,1.32978903]
[1642974931099,1.47384329,2429.3,2428.5,1.32978903]
[1642974933208,1.01655842,2429.0,2428.5,1.32978903]
[1642974933811,1.15250504,2429.4,2428.5,1.32978903]
[1642974934008,0.01220504,2429.4,2428.5,1.32978903]
[1642974935051,1.42595911,2429.3,2428.5,1.32978903]
[1642974936057,1.42595911,2429.3,2428.5,0.3]
[1642974936255,1.42595911,2429.3,2428.2,0.592]
[1642974936556,1.42595911,2429.3,2427.9,3.7286]
[1642974936557,0.91618662,2428.4,2427.9,3.7286]
[1642974936758,0.91618662,2428.4,2427.8,3.7308]
[1642974936954,0.91618662,2428.4,2427.4,3.8059]
[1642974936955,0.01235807,2428.8,2427.4,3.8059]
[1642974937154,1.43373995,2428.8,2428.0,1.35558219]
[1642974937753,1.43373995,2428.8,2428.0,1.95558219]
[1642974937953,0.98302277,2428.4,2428.0,0.6]
[1642974938157,0.98302277,2428.4,2427.9,1.46757775]
[1642974938356,0.98302277,2428.4,2427.9,1.16757775]
[1642974938616,1.43373995,2428.8,2427.9,1.16757775]
[1642974939113,1.43373995,2428.8,2427.5,4.8877]
[1642974939114,1.35930999,2428.2,2427.5,4.8877]
[1642974939313,1.35930999,2428.2,2427.5,3.6724]
[1642974939611,1.35930999,2428.2,2427.4,3.8059]
[1642974939813,1.35930999,2428.2,2427.0,5.34831]
[1642974940116,0.98302277,2427.9,2427.4,1.22665349]
[1642974940313,0.98302277,2427.9,2427.0,5.1421]
[1642974940513,0.98302277,2427.9,2426.8,0.20621]
[1642974941314,0.98302277,2427.9,2426.9,1.06768603]
[1642974941514,1.42786131,2427.8,2427.1,1.32082571]
[1642974941712,0.98302277,2427.9,2427.1,1.32082571]
[1642974941913,0.98302277,2427.9,2427.4,0.91932901]
[1642974942113,0.98302277,2427.9,2427.1,1.32082571]
[1642974942361,0.98302277,2427.9,2427.1,1.92082571]
[1642974942556,0.1768,2428.3,2427.2,0.20621]
[1642974942953,0.1768,2428.3,2427.0,1.2413]
[1642974943154,0.01245492,2428.2,2427.0,1.2413]
[1642974943555,0.86480938,2427.5,2427.0,2.24556417]
[1642974943768,0.86480938,2427.5,2427.0,2.55218972]
[1642974944158,0.86480938,2427.5,2427.0,1.75413555]
[1642974944358,0.86480938,2427.5,2426.6,3.8965]
[1642974944560,0.86480938,2427.5,2426.3,1.36001]
[1642974944760,0.86480938,2427.5,2426.3,3.36001]
[1642974944957,2.04220938,2427.5,2426.3,1.36001]
[1642974945459,0.11821339,2427.1,2426.5,1.37281302]
[1642974945659,1.1774,2427.5,2426.5,1.37281302]
[1642974945861,1.1774,2427.5,2426.5,1.97281302]
[1642974946413,1.1774,2427.5,2426.5,0.3]
[1642974946609,0.98302277,2426.8,2426.3,2.73759408]
[1642974946809,0.98302277,2426.8,2426.3,1.6]
[1642974947011,0.98302277,2426.8,2426.2,7.43]
[1642974947212,0.98302277,2426.8,2425.9,1.2274]
[1642974947409,2.30934278,2426.8,2426.0,1.39627765]
[1642974948216,2.30934278,2426.8,2426.0,1.69627765]
[1642974948414,2.30934278,2426.8,2426.2,0.94223382]
[1642974948613,2.30934278,2426.8,2426.0,1.39627765]
[1642974949029,2.30934278,2426.8,2425.6,1.3]
[1642974949214,3.52674278,2426.8,2426.0,7.43]
[1642974949615,3.63241278,2426.8,2426.0,8.52158868]
[1642974949860,3.6661742,2426.8,2426.0,8.52158868]
[1642974950050,1.0,2426.7,2426.0,8.52158868]
[1642974950450,1.0,2426.7,2426.1,1.39373889]
[1642974951051,3.41501278,2426.8,2426.0,7.43]
[1642974952156,1.20765301,2426.4,2426.0,7.43]
[1642974957953,1.20765301,2426.4,2425.5,3.9084]
[1642974958154,1.20765301,2426.4,2425.5,2.7093092]
[1642974959368,1.20765301,2426.4,2425.5,0.3]
[1642974959764,1.20765301,2426.4,2425.4,7.73]
[1642974960163,1.20765301,2426.4,2425.4,7.43]
[1642974960364,1.20765301,2426.4,2425.4,7.73]
[1642974960562,1.20765301,2426.4,2425.4,8.82113186]
[1642974960965,1.20765301,2426.4,2425.5,1.16542362]
[1642974962011,1.20765301,2426.4,2425.4,8.82113186]
[1642974962207,1.30853556,2426.0,2425.4,8.82113186]
[1642974962507,8.33877,2426.5,2425.4,8.82113186]
[1642974962908,8.37117398,2426.5,2425.4,8.82113186]
[1642974963307,1.39339356,2426.1,2425.4,8.82113186]
[1642974963908,1.39339356,2426.1,2425.4,1.39113186]
[1642974964707,1.39339356,2426.1,2425.4,0.3]
[1642974964958,1.39339356,2426.1,2425.3,0.3]
[1642974965162,1.39339356,2426.1,2425.2,0.3]
[1642974965361,1.39339356,2426.1,2425.1,4.4891]
[1642974965761,1.39339356,2426.1,2425.1,6.91863541]
[1642974966361,1.39339356,2426.1,2425.1,6.91763477]
[1642974967166,1.24339356,2426.1,2425.1,6.91763477]
[1642974967863,1.37922952,2425.7,2425.1,1.27205977]
[1642974968907,5.004,2426.2,2425.3,1.03885511]
[1642974969108,1.2026,2426.2,2425.3,1.03885511]
[1642974969307,1.2026,2426.2,2425.1,1.87205977]
[1642974970409,1.29752116,2425.9,2425.1,1.87205977]
[1642974970708,1.2026,2426.2,2425.1,2.87205977]
[1642974972108,1.46954002,2425.9,2425.1,2.87205977]
[1642974973463,1.46954002,2425.9,2425.1,1.27205977]
[1642974973659,1.46954002,2425.9,2425.1,1.87205977]
[1642974974161,2.0,2425.8,2424.5,0.1848]
[1642974974365,0.04945777,2425.6,2424.5,0.1848]
[1642974974561,0.10567,2425.5,2424.5,0.1848]
[1642974974760,0.03474025,2425.4,2424.5,0.02]
[1642974974966,0.10567,2425.3,2424.5,0.02]
[1642974975160,1.23224478,2425.0,2424.5,0.02]
[1642974975363,0.10567,2425.1,2424.5,0.02]
[1642974975564,3.9121,2426.0,2424.7,0.9982838]
[1642974975565,3.99895181,2426.0,2424.7,0.9982838]
[1642974975863,3.9121,2426.0,2424.8,7.43]
[1642974976106,3.9121,2426.0,2424.8,7.73]
[1642974976309,1.49816791,2425.7,2425.0,1.26916049]
[1642974976511,1.49816791,2425.7,2425.0,1.56916049]
[1642974976709,1.49816791,2425.7,2424.8,8.41136925]
[1642974976910,1.49816791,2425.7,2424.9,0.3]
[1642974977310,1.49816791,2425.7,2424.8,8.71136925]
[1642974977515,1.49816791,2425.7,2424.8,8.41136925]
[1642974977913,1.49816791,2425.7,2424.8,8.94678107]
[1642974978313,1.49816791,2425.7,2424.5,0.02]
[1642974979115,1.49816791,2425.7,2424.5,0.91192488]
[1642974979315,1.49816791,2425.7,2424.7,1.38732356]
[1642974979517,1.49816791,2425.7,2425.1,1.19908844]
[1642974979960,3.9121,2426.0,2425.1,1.19908844]
[1642974980164,3.8853,2426.1,2425.1,1.19908844]
[1642974980361,3.8853,2426.1,2425.1,1.79908844]
[1642974980963,3.8853,2426.1,2425.1,1.19908844]
[1642974981163,1.08731227,2425.8,2425.1,1.79908844]
[1642974982370,3.8853,2426.1,2425.1,2.96003371]
[1642974982969,3.8853,2426.1,2425.1,1.79908844]
[1642974983369,1.43174882,2426.1,2425.1,1.79908844]
[1642974983608,1.43174882,2426.1,2425.2,2.16477272]
[1642974983812,1.43174882,2426.1,2425.1,9.24180762]
[1642974984011,1.43174882,2426.1,2425.2,1.0]
[1642974984211,1.43174882,2426.1,2425.2,2.06604057]
[1642974984613,1.43174882,2426.1,2425.1,9.24180762]
[1642974984812,1.43174882,2426.1,2425.1,9.22908844]
[1642974985812,1.43174882,2426.1,2425.1,9.54977273]
[1642974986015,1.43174882,2426.1,2425.1,9.22908844]
[1642974987215,1.43174882,2426.1,2425.1,10.32890724]
[1642974987455,1.43174882,2426.1,2425.1,9.72890724]
[1642974988056,1.43174882,2426.1,2425.1,10.32890724]
[1642974991714,1.43174882,2426.1,2425.1,10.32733442]
[1642974996965,4.9039,2426.3,2425.5,2.60352039]
[1642974997167,4.9039,2426.3,2425.6,2.13213811]
[1642974997366,4.9039,2426.3,2425.6,3.4491897]
[1642974997367,1.1337,2426.3,2425.6,3.4491897]
[1642974997565,3.0157,2426.4,2425.6,3.46509656]
[1642974997765,1.08869277,2426.8,2425.6,1.3]
[1642974998065,1.18288633,2426.7,2426.0,1.51480631]
[1642974998266,0.98302277,2426.8,2426.1,2.1107942]
[1642974998475,0.98302277,2426.8,2426.0,2.11480631]
[1642974998717,0.98302277,2426.8,2426.0,3.11480631]
[1642974998919,0.98302277,2426.8,2426.0,2.11480631]
[1642974999117,0.98302277,2426.8,2426.1,1.0]
[1642974999317,0.98302277,2426.8,2426.4,1.46817024]
[1642974999519,13.1463,2427.2,2426.4,1.46817024]
[1642974999821,1.1987,2427.2,2426.4,1.76817024]
[1642975000017,3.7217,2427.4,2426.4,2.76817024]
[1642975000819,0.98302277,2426.8,2426.0,4.90899911]
[1642975001027,0.98302277,2426.8,2426.0,1.7409]
[1642975001320,0.98302277,2426.8,2426.0,0.592]
[1642975001717,2.58626833,2427.3,2426.0,0.592]
[1642975001918,2.58626833,2427.3,2426.6,1.20419902]
[1642975002118,2.58626833,2427.3,2426.0,0.592]
[1642975002119,1.36166833,2427.3,2426.0,3.04305601]
[1642975002369,1.36166833,2427.3,2426.0,2.9886312]
[1642975002560,1.36166833,2427.3,2426.1,1.0]
[1642975002762,1.36166833,2427.3,2426.1,1.50621]
[1642975002960,0.98302277,2426.5,2426.1,1.50621]
[1642975003162,1.2176,2427.2,2426.3,1.39220588]
[1642975003363,1.2176,2427.2,2426.3,1.99220588]
[1642975003566,1.37095592,2426.9,2426.3,1.99220588]
[1642975003769,1.2176,2427.2,2426.3,1.99220588]
[1642975004267,0.98302277,2426.8,2426.3,1.99220588]
[1642975004867,1.12399311,2427.3,2426.3,1.99220588]
[1642975006118,0.98302277,2426.8,2426.3,1.99220588]
[1642975006715,0.98302277,2426.8,2426.3,1.69220588]
[1642975006917,0.98302277,2426.8,2426.1,1.0]
[1642975007217,0.98302277,2426.8,2426.1,0.3]
[1642975007417,0.98302277,2426.8,2426.0,0.892]
[1642975007821,0.98302277,2426.8,2426.0,0.3]
[1642975008019,0.98302277,2426.8,2426.2,1.48664128]
[1642975008219,0.01268945,2426.9,2426.2,1.48664128]
[1642975008632,1.1305,2427.3,2426.2,1.48664128]
[1642975008633,1.1305,2427.3,2426.2,4.56049526]
[1642975008825,0.01275379,2427.6,2426.3,2.20621]
[1642975009025,0.01275379,2427.6,2426.3,2.50621]
[1642975009228,0.98302277,2427.6,2427.1,1.46934422]
[1642975009431,5.0121,2428.0,2427.1,1.46934422]
[1642975009432,0.00273136,2428.1,2427.1,1.46934422]
[1642975009626,0.00273136,2428.1,2427.1,1.76934422]
[1642975009867,0.00273136,2428.1,2427.1,2.76934422]
[1642975010059,0.04,2428.2,2427.1,2.76934422]
[1642975010463,0.98302277,2428.0,2427.1,2.76934422]
[1642975010660,0.98302277,2428.0,2427.1,1.76934422]
[1642975010861,0.98302277,2428.0,2427.1,1.46934422]
[1642975011664,0.04,2428.2,2427.5,1.25657322]
[1642975011869,0.04,2428.2,2427.6,2.96291]
[1642975012063,0.04,2428.2,2427.7,1.03023]
[1642975012261,0.04,2428.2,2427.8,0.7567]
[1642975012465,0.04,2428.2,2427.8,2.001]
[1642975012669,0.04,2428.2,2427.9,2.72856853]
[1642975012868,0.04,2428.2,2428.0,0.592]
[1642975013063,0.04,2428.2,2428.0,1.592]
[1642975013264,0.04,2428.2,2428.0,0.592]
[1642975013464,0.04,2428.2,2428.1,4.50621]
[1642975013718,0.04,2428.2,2428.0,1.0]
[1642975013924,0.04,2428.2,2427.9,1.46004149]
[1642975014122,0.04,2428.2,2428.0,1.0]
[1642975014320,0.04,2428.2,2427.9,0.3]
[1642975014520,0.04,2428.2,2427.8,0.6]
[1642975014725,0.04,2428.2,2427.7,0.1647]
[1642975015025,0.1045913,2428.1,2427.7,0.1647]
[1642975015220,1.19073196,2427.9,2427.7,0.1647]
[1642975015423,0.1045913,2428.1,2427.7,0.1647]
[1642975015620,0.1045913,2428.1,2427.7,0.16339923]
[1642975016222,0.1045913,2428.1,2427.4,0.3]
[1642975016430,0.1045913,2428.1,2427.6,1.2506275]
[1642975016625,0.1045913,2428.1,2427.6,1.5506275]
[1642975017127,0.1045913,2428.1,2427.6,1.8506275]
[1642975017375,0.04,2428.2,2427.6,1.8506275]
[1642975017571,0.04,2428.2,2427.7,0.592]
[1642975017768,0.04,2428.2,2427.8,0.37091]
[1642975017967,0.04,2428.2,2427.9,0.592]
[1642975018166,0.04,2428.2,2427.9,1.67393445]
[1642975018370,0.04,2428.6,2428.3,7.65]
[1642975018574,0.04,2428.6,2428.5,5.25621]
[1642975018771,0.04,2428.6,2428.5,5.84821]
[1642975018977,0.04,2428.6,2428.5,6.14821]
[1642975019173,0.04,2428.6,2428.5,7.14821]
[1642975019471,0.93380417,2429.7,2428.6,5.6]
[1642975019674,0.93380417,2429.7,2428.7,1.0]
[1642975019873,0.93380417,2429.7,2428.7,1.3]
[1642975020073,0.93380417,2429.7,2428.7,1.6]
[1642975020473,1.52439718,2429.3,2428.7,0.3]
[1642975020873,1.52439718,2429.3,2428.3,0.892]
[1642975021132,1.52439718,2429.3,2428.3,2.192]
[1642975021332,0.01285998,2429.4,2428.3,2.39821]
[1642975021538,0.01285998,2429.4,2428.3,2.72024306]
[1642975021737,0.10567,2429.3,2428.1,0.1645]
[1642975021936,0.13819996,2429.2,2428.1,0.1645]
[1642975022134,0.01243873,2428.8,2428.1,0.1645]
[1642975022335,1.12072457,2428.8,2428.1,1.3869553]
[1642975023137,1.12072457,2428.8,2428.1,0.1645]
[1642975023542,2.28796992,2428.7,2427.0,0.20621]
[1642975023743,2.28796992,2428.7,2427.1,0.592]
[1642975023744,0.01238066,2428.3,2427.1,0.592]
[1642975023944,0.01238066,2428.3,2426.8,6.2992]
[1642975024143,1.4093859,2427.9,2427.1,1.47221486]
[1642975024739,0.01238066,2428.3,2427.3,1.10956212]
[1642975024971,0.01238066,2428.3,2427.4,0.3]
[1642975025168,3.33285446,2428.6,2427.4,0.3]